[Event "Late-Titled-Tuesday-Blitz-May-14-2024"]
[Site "Chess.com"]
[Date "2024.05.14"]
[Round "8"]
[White "wild3000"]
[Black "CombativeWombat"]
[Result "1/2-1/2"]
[WhiteElo "2472"]
[BlackElo "2343"]
[TimeControl "180+1"]
[EndTime "15:28:36 PDT"]
[Termination "Game drawn by stalemate"]

1. d4 {[%clk 0:03:00]} 1... d5 {[%clk 0:03:00]} 2. Nf3 {[%clk 0:03:00.9]} 2...
Nf6 {[%clk 0:02:59.8]} 3. c4 {[%clk 0:03:01.8]} 3... e6 {[%clk 0:03:00.1]} 4.
Nc3 {[%clk 0:03:01.7]} 4... dxc4 {[%clk 0:03:00.6]} 5. e4 {[%clk 0:03:00.1]}
5... b5 {[%clk 0:03:01]} 6. Bg5 {[%clk 0:02:59.7]} 6... a6 {[%clk 0:02:46.1]} 7.
e5 {[%clk 0:02:59.2]} 7... h6 {[%clk 0:02:46.3]} 8. Bh4 {[%clk 0:02:54]} 8... g5
{[%clk 0:02:46.6]} 9. Nxg5 {[%clk 0:02:44.7]} 9... hxg5 {[%clk 0:02:46.6]} 10.
Bxg5 {[%clk 0:02:45.6]} 10... Nbd7 {[%clk 0:02:37.3]} 11. exf6 {[%clk
0:02:39.1]} 11... Bb7 {[%clk 0:02:36.4]} 12. a4 {[%clk 0:02:20.2]} 12... Bb4
{[%clk 0:02:29.2]} 13. axb5 {[%clk 0:02:00.2]} 13... axb5 {[%clk 0:02:30.1]} 14.
Rxa8 {[%clk 0:02:00]} 14... Qxa8 {[%clk 0:02:30.9]} 15. h4 {[%clk 0:01:49.1]}
15... Bxg2 {[%clk 0:02:14.7]} 16. Rg1 {[%clk 0:01:49.1]} 16... Bf3 {[%clk
0:02:05.9]} 17. Be2 {[%clk 0:01:46.5]} 17... Bxe2 {[%clk 0:01:59.1]} 18. Kxe2
{[%clk 0:01:42.1]} 18... Bxc3 {[%clk 0:01:49.4]} 19. bxc3 {[%clk 0:01:43]} 19...
Qe4+ {[%clk 0:01:49.7]} 20. Kf1 {[%clk 0:01:41.9]} 20... Nb6 {[%clk 0:01:46]}
21. Qe2 {[%clk 0:01:27.9]} 21... Qf5 {[%clk 0:01:30.1]} 22. Rg3 {[%clk
0:01:17.2]} 22... Kd7 {[%clk 0:01:25.1]} 23. Kg2 {[%clk 0:01:11]} 23... Nd5
{[%clk 0:01:23.5]} 24. Qb2 {[%clk 0:00:45.2]} 24... Rb8 {[%clk 0:00:53.7]} 25.
Qa3 {[%clk 0:00:34.6]} 25... b4 {[%clk 0:00:39.4]} 26. cxb4 {[%clk 0:00:29.2]}
26... Qe4+ {[%clk 0:00:34.8]} 27. Kh2 {[%clk 0:00:27.5]} 27... Qxd4 {[%clk
0:00:34.6]} 28. Qa4+ {[%clk 0:00:26.1]} 28... c6 {[%clk 0:00:34]} 29. Qc2 {[%clk
0:00:17.5]} 29... Nxb4 {[%clk 0:00:28.5]} 30. Qh7 {[%clk 0:00:17.1]} 30... Rf8
{[%clk 0:00:13.2]} 31. Qg7 {[%clk 0:00:14.8]} 31... Ke8 {[%clk 0:00:10.3]} 32.
h5 {[%clk 0:00:14.9]} 32... Qxf2+ {[%clk 0:00:10.5]} 33. Kh3 {[%clk 0:00:13.5]}
33... Nd3 {[%clk 0:00:09.7]} 34. h6 {[%clk 0:00:11.6]} 34... Qf5+ {[%clk
0:00:09.4]} 35. Kg2 {[%clk 0:00:10.2]} 35... Ne1+ {[%clk 0:00:07.5]} 36. Kg1
{[%clk 0:00:09.3]} 36... Nf3+ {[%clk 0:00:07.1]} 37. Kg2 {[%clk 0:00:08]} 37...
Ne1+ {[%clk 0:00:07.2]} 38. Kg1 {[%clk 0:00:08]} 38... Nf3+ {[%clk 0:00:07]} 39.
Kh1 {[%clk 0:00:07.3]} 39... Nxg5 {[%clk 0:00:06]} 40. Qxg5 {[%clk 0:00:06.9]}
40... Qxg5 {[%clk 0:00:04]} 41. Rxg5 {[%clk 0:00:07.8]} 41... Rh8 {[%clk
0:00:04.7]} 42. Rh5 {[%clk 0:00:07.8]} 42... Kd7 {[%clk 0:00:03.5]} 43. Kg2
{[%clk 0:00:07.8]} 43... e5 {[%clk 0:00:04.1]} 44. Kf3 {[%clk 0:00:08]} 44...
Ke6 {[%clk 0:00:04.3]} 45. Ke4 {[%clk 0:00:08.4]} 45... Kxf6 {[%clk 0:00:04.4]}
46. Rf5+ {[%clk 0:00:08.7]} 46... Kg6 {[%clk 0:00:03.5]} 47. Rxe5 {[%clk
0:00:09.2]} 47... Rxh6 {[%clk 0:00:02.5]} 48. Rc5 {[%clk 0:00:10.1]} 48... Rh4+
{[%clk 0:00:02.4]} 49. Kf3 {[%clk 0:00:10.8]} 49... f5 {[%clk 0:00:01.6]} 50.
Rxc6+ {[%clk 0:00:10.7]} 50... Kg5 {[%clk 0:00:02.3]} 51. Rc8 {[%clk 0:00:10.8]}
51... Rh6 {[%clk 0:00:02.8]} 52. Rxc4 {[%clk 0:00:10.4]} 52... Ra6 {[%clk
0:00:03]} 53. Rc3 {[%clk 0:00:10.4]} 53... Ra4 {[%clk 0:00:03.2]} 54. Rb3 {[%clk
0:00:10.6]} 54... Rc4 {[%clk 0:00:03.3]} 55. Ra3 {[%clk 0:00:10.6]} 55... Rf4+
{[%clk 0:00:03.6]} 56. Kg3 {[%clk 0:00:10.7]} 56... Rg4+ {[%clk 0:00:04.2]} 57.
Kf3 {[%clk 0:00:10.8]} 57... Rh4 {[%clk 0:00:04.6]} 58. Kg3 {[%clk 0:00:11.1]}
58... Rg4+ {[%clk 0:00:04.5]} 59. Kf3 {[%clk 0:00:11.4]} 59... Rh4 {[%clk
0:00:05]} 60. Kg2 {[%clk 0:00:11.4]} 60... f4 {[%clk 0:00:05]} 61. Ra5+ {[%clk
0:00:11.4]} 61... Kg4 {[%clk 0:00:05.3]} 62. Ra8 {[%clk 0:00:11.9]} 62... Rh5
{[%clk 0:00:05.5]} 63. Rg8+ {[%clk 0:00:11.4]} 63... Rg5 {[%clk 0:00:05.5]} 64.
Rf8 {[%clk 0:00:11.8]} 64... Rb5 {[%clk 0:00:04.9]} 65. Rg8+ {[%clk 0:00:11.1]}
65... Rg5 {[%clk 0:00:04.9]} 66. Rf8 {[%clk 0:00:11.2]} 66... Rf5 {[%clk
0:00:05.4]} 67. Rxf5 {[%clk 0:00:10]} 67... Kxf5 {[%clk 0:00:05.6]} 68. Kf3
{[%clk 0:00:10.6]} 68... Ke5 {[%clk 0:00:06.1]} 69. Kf2 {[%clk 0:00:10.7]} 69...
Ke4 {[%clk 0:00:06.7]} 70. Ke2 {[%clk 0:00:10.8]} 70... f3+ {[%clk 0:00:07.3]}
71. Kf2 {[%clk 0:00:11.1]} 71... Kf4 {[%clk 0:00:08.2]} 72. Kf1 {[%clk
0:00:11.1]} 72... Ke3 {[%clk 0:00:09.1]} 73. Ke1 {[%clk 0:00:11.2]} 73... f2+
{[%clk 0:00:10]} 74. Kf1 {[%clk 0:00:11.5]} 74... Kf3 {[%clk 0:00:10.9]} 1/2-1/2

[Event "Late-Titled-Tuesday-Blitz-May-14-2024"]
[Site "Chess.com"]
[Date "2024.05.14"]
[Round "8"]
[White "Michalczak"]
[Black "LeninGuerra"]
[Result "1/2-1/2"]
[WhiteElo "2510"]
[BlackElo "2660"]
[TimeControl "180+1"]
[EndTime "15:28:39 PDT"]
[Termination "Game drawn - insufficient material"]

1. e4 {[%clk 0:03:00.9]} 1... c5 {[%clk 0:02:58.3]} 2. c3 {[%clk 0:03:01.1]}
2... d5 {[%clk 0:02:57.2]} 3. exd5 {[%clk 0:03:01.1]} 3... Qxd5 {[%clk
0:02:58.1]} 4. Nf3 {[%clk 0:03:01.3]} 4... Nc6 {[%clk 0:02:56.9]} 5. Na3 {[%clk
0:03:01.4]} 5... e6 {[%clk 0:02:56.5]} 6. Bc4 {[%clk 0:03:01.2]} 6... Qd8 {[%clk
0:02:56.2]} 7. O-O {[%clk 0:03:01.8]} 7... Nf6 {[%clk 0:02:56.6]} 8. Qe2 {[%clk
0:03:02.4]} 8... Be7 {[%clk 0:02:57.1]} 9. Rd1 {[%clk 0:03:03]} 9... O-O {[%clk
0:02:57.4]} 10. d4 {[%clk 0:03:03.3]} 10... cxd4 {[%clk 0:02:58.3]} 11. Nb5
{[%clk 0:03:03.7]} 11... a6 {[%clk 0:02:53.2]} 12. Nbxd4 {[%clk 0:03:03.8]}
12... Nxd4 {[%clk 0:02:53.4]} 13. Rxd4 {[%clk 0:03:03.6]} 13... Qe8 {[%clk
0:02:53.7]} 14. Ne5 {[%clk 0:02:51.8]} 14... b5 {[%clk 0:02:51.6]} 15. Bd3
{[%clk 0:02:48.1]} 15... Bb7 {[%clk 0:02:51.9]} 16. Bg5 {[%clk 0:02:45.3]} 16...
h6 {[%clk 0:02:49.8]} 17. Bh4 {[%clk 0:02:28.4]} 17... Rd8 {[%clk 0:02:48.2]}
18. Rxd8 {[%clk 0:02:01.5]} 18... Qxd8 {[%clk 0:02:49.1]} 19. Rd1 {[%clk
0:02:01.2]} 19... Qa8 {[%clk 0:02:39.5]} 20. Bxf6 {[%clk 0:01:51.9]} 20... Bxf6
{[%clk 0:02:40.4]} 21. Nd7 {[%clk 0:01:52]} 21... Rd8 {[%clk 0:02:40.8]} 22.
Nxf6+ {[%clk 0:01:51.6]} 22... gxf6 {[%clk 0:02:41.7]} 23. Qg4+ {[%clk
0:01:47.7]} 23... Kf8 {[%clk 0:02:41.8]} 24. f3 {[%clk 0:01:32.8]} 24... Qa7+
{[%clk 0:02:40.8]} 25. Kf1 {[%clk 0:01:31.9]} 25... Qc5 {[%clk 0:02:41]} 26. Qf4
{[%clk 0:01:31.4]} 26... Ke7 {[%clk 0:02:34.6]} 27. Qxh6 {[%clk 0:01:21.3]}
27... Bd5 {[%clk 0:02:34.6]} 28. b3 {[%clk 0:01:10.7]} 28... Qxc3 {[%clk
0:02:32.3]} 29. Be2 {[%clk 0:01:00.3]} 29... Qe5 {[%clk 0:02:18.6]} 30. h4
{[%clk 0:00:56.3]} 30... Qg3 {[%clk 0:02:14.8]} 31. h5 {[%clk 0:00:52.5]} 31...
Rg8 {[%clk 0:02:13.1]} 32. Qe3 {[%clk 0:00:39.1]} 32... Qxg2+ {[%clk 0:02:09.9]}
33. Ke1 {[%clk 0:00:39.8]} 33... Kf8 {[%clk 0:01:17.5]} 34. h6 {[%clk
0:00:39.3]} 34... Rg5 {[%clk 0:01:07.1]} 35. Qf4 {[%clk 0:00:29.3]} 35... Re5
{[%clk 0:00:58.4]} 36. Kd2 {[%clk 0:00:04.3]} 36... Qxe2+ {[%clk 0:00:52.5]} 37.
Kc1 {[%clk 0:00:04.9]} 37... Qe3+ {[%clk 0:00:51.3]} 38. Qxe3 {[%clk 0:00:03.2]}
38... Rxe3 {[%clk 0:00:52.2]} 39. Rg1 {[%clk 0:00:03.5]} 39... Rxf3 {[%clk
0:00:26.9]} 40. h7 {[%clk 0:00:04.4]} 40... Rh3 {[%clk 0:00:26.7]} 41. Rg8+
{[%clk 0:00:04.4]} 41... Ke7 {[%clk 0:00:27.1]} 42. h8=Q {[%clk 0:00:05.3]}
42... Rxh8 {[%clk 0:00:27.3]} 43. Rxh8 {[%clk 0:00:06.2]} 43... Kd6 {[%clk
0:00:27.5]} 44. Rd8+ {[%clk 0:00:06.2]} 44... Kc5 {[%clk 0:00:27.4]} 45. Rf8
{[%clk 0:00:06.8]} 45... e5 {[%clk 0:00:27.1]} 46. Rc8+ {[%clk 0:00:06.9]} 46...
Kb6 {[%clk 0:00:24.4]} 47. Kd2 {[%clk 0:00:06.9]} 47... f5 {[%clk 0:00:23.7]}
48. Ke3 {[%clk 0:00:07.2]} 48... f4+ {[%clk 0:00:22.7]} 49. Kd3 {[%clk
0:00:07.7]} 49... f5 {[%clk 0:00:19.5]} 50. Re8 {[%clk 0:00:07.4]} 50... e4+
{[%clk 0:00:17.9]} 51. Kd4 {[%clk 0:00:08.1]} 51... Bc6 {[%clk 0:00:18.4]} 52.
Rf8 {[%clk 0:00:07.2]} 52... e3 {[%clk 0:00:18]} 53. Rxf5 {[%clk 0:00:06.3]}
53... e2 {[%clk 0:00:18.3]} 54. Re5 {[%clk 0:00:06.6]} 54... f3 {[%clk
0:00:18.7]} 55. Kd3 {[%clk 0:00:05.6]} 55... b4 {[%clk 0:00:17.4]} 56. Kd2
{[%clk 0:00:05.1]} 56... a5 {[%clk 0:00:15.3]} 57. Ke1 {[%clk 0:00:05.7]} 57...
a4 {[%clk 0:00:14.1]} 58. Kf2 {[%clk 0:00:06.4]} 58... a3 {[%clk 0:00:14]} 59.
Rf5 {[%clk 0:00:04.8]} 59... Ka6 {[%clk 0:00:11.7]} 60. Rc5 {[%clk 0:00:02.6]}
60... Kb6 {[%clk 0:00:11.8]} 61. Re5 {[%clk 0:00:03.3]} 61... Kc7 {[%clk
0:00:11.5]} 62. Rf5 {[%clk 0:00:03.5]} 62... Kd6 {[%clk 0:00:12]} 63. Ra5 {[%clk
0:00:03.5]} 63... Be4 {[%clk 0:00:11.8]} 64. Rb5 {[%clk 0:00:03.5]} 64... Bb1
{[%clk 0:00:09.9]} 65. Rxb4 {[%clk 0:00:03.9]} 65... Bxa2 {[%clk 0:00:10.5]} 66.
Ra4 {[%clk 0:00:04.8]} 66... Bxb3 {[%clk 0:00:11]} 67. Rxa3 {[%clk 0:00:05.5]}
67... Bd5 {[%clk 0:00:11.5]} 68. Rd3 {[%clk 0:00:05.5]} 68... Ke5 {[%clk
0:00:11.7]} 69. Re3+ {[%clk 0:00:05.2]} 69... Kd4 {[%clk 0:00:11.7]} 70. Re7
{[%clk 0:00:04.5]} 70... Be4 {[%clk 0:00:11.6]} 71. Rd7+ {[%clk 0:00:04.5]}
71... Kc3 {[%clk 0:00:12.1]} 72. Re7 {[%clk 0:00:04.6]} 72... Bd3 {[%clk
0:00:12.3]} 73. Re3 {[%clk 0:00:03.4]} 73... Kd2 {[%clk 0:00:12.5]} 74. Kxf3
{[%clk 0:00:03.8]} 74... e1=Q {[%clk 0:00:10.3]} 75. Rxe1 {[%clk 0:00:03.6]}
75... Kxe1 {[%clk 0:00:10.7]} 1/2-1/2

[Event "Late-Titled-Tuesday-Blitz-May-14-2024"]
[Site "Chess.com"]
[Date "2024.05.14"]
[Round "8"]
[White "GoltsevDmitry2000"]
[Black "vpsetter"]
[Result "1-0"]
[WhiteElo "2748"]
[BlackElo "2550"]
[TimeControl "180+1"]
[EndTime "15:28:41 PDT"]
[Termination "GoltsevDmitry2000 won by resignation"]

1. e4 {[%clk 0:03:00.1]} 1... c5 {[%clk 0:02:56.6]} 2. Nf3 {[%clk 0:03:00.2]}
2... Nc6 {[%clk 0:02:56.9]} 3. d4 {[%clk 0:03:00.8]} 3... cxd4 {[%clk
0:02:57.3]} 4. Nxd4 {[%clk 0:03:01.7]} 4... Nf6 {[%clk 0:02:57.8]} 5. Nc3 {[%clk
0:03:02.2]} 5... d6 {[%clk 0:02:58.3]} 6. Be2 {[%clk 0:03:02.1]} 6... g6 {[%clk
0:02:52.6]} 7. O-O {[%clk 0:02:54.5]} 7... Bg7 {[%clk 0:02:52.1]} 8. Bg5 {[%clk
0:02:54.3]} 8... O-O {[%clk 0:02:49.8]} 9. Nb3 {[%clk 0:02:53.3]} 9... a6 {[%clk
0:02:40.9]} 10. Qd2 {[%clk 0:02:50.3]} 10... b5 {[%clk 0:02:37.5]} 11. a3 {[%clk
0:02:41.9]} 11... Bb7 {[%clk 0:02:34]} 12. Rad1 {[%clk 0:02:40.5]} 12... Rc8
{[%clk 0:02:08.8]} 13. Qe3 {[%clk 0:02:36.2]} 13... Ne5 {[%clk 0:02:00]} 14. h3
{[%clk 0:02:26.4]} 14... Qc7 {[%clk 0:01:30.8]} 15. Bh6 {[%clk 0:02:07.9]} 15...
Bxh6 {[%clk 0:01:24.1]} 16. Qxh6 {[%clk 0:02:08.8]} 16... Nxe4 {[%clk
0:01:20.6]} 17. Rd4 {[%clk 0:01:59.2]} 17... f5 {[%clk 0:01:05.6]} 18. Nxe4
{[%clk 0:01:51.3]} 18... Bxe4 {[%clk 0:00:57.7]} 19. c3 {[%clk 0:01:49]} 19...
Nf7 {[%clk 0:00:51.8]} 20. Qh4 {[%clk 0:01:43.5]} 20... e5 {[%clk 0:00:37.9]}
21. Rd2 {[%clk 0:01:39.6]} 21... Qd8 {[%clk 0:00:32.7]} 22. Qg3 {[%clk
0:01:33.6]} 22... f4 {[%clk 0:00:31.5]} 23. Qh2 {[%clk 0:01:30.2]} 23... Qf6
{[%clk 0:00:30]} 24. f3 {[%clk 0:01:23.5]} 24... Bf5 {[%clk 0:00:23.7]} 25. Rfd1
{[%clk 0:01:22.6]} 25... Be6 {[%clk 0:00:22.5]} 26. Nc1 {[%clk 0:01:17.6]} 26...
Rfd8 {[%clk 0:00:20.3]} 27. Nd3 {[%clk 0:01:17.2]} 27... a5 {[%clk 0:00:19.1]}
28. Nf2 {[%clk 0:01:17.1]} 28... d5 {[%clk 0:00:14.9]} 29. Bxb5 {[%clk
0:01:17.3]} 29... Nd6 {[%clk 0:00:14.7]} 30. Bd3 {[%clk 0:01:16]} 30... h5
{[%clk 0:00:14.9]} 31. Kh1 {[%clk 0:01:15.7]} 31... Kg7 {[%clk 0:00:14.2]} 32.
Qg1 {[%clk 0:01:16.1]} 32... g5 {[%clk 0:00:14.6]} 33. Qe1 {[%clk 0:01:11.7]}
33... g4 {[%clk 0:00:13.8]} 34. Bf1 {[%clk 0:01:09.3]} 34... gxf3 {[%clk
0:00:13.1]} 35. gxf3 {[%clk 0:01:08.8]} 35... Nf5 {[%clk 0:00:13.8]} 36. Nd3
{[%clk 0:01:06.6]} 36... Ne3 {[%clk 0:00:13.7]} 37. Rc1 {[%clk 0:01:04]} 37...
Kh6 {[%clk 0:00:13.7]} 38. Qf2 {[%clk 0:00:38.4]} 38... Bf5 {[%clk 0:00:12.6]}
39. Re1 {[%clk 0:00:38.6]} 39... Bxd3 {[%clk 0:00:12.3]} 40. Bxd3 {[%clk
0:00:36.6]} 40... Rg8 {[%clk 0:00:10.8]} 41. Rxe3 {[%clk 0:00:28.3]} 41... fxe3
{[%clk 0:00:10.7]} 42. Qxe3+ {[%clk 0:00:29.2]} 42... Qg5 {[%clk 0:00:11.1]} 43.
Qb6+ {[%clk 0:00:28.3]} 43... Rg6 {[%clk 0:00:05.7]} 44. Qxg6+ {[%clk
0:00:27.7]} 44... Qxg6 {[%clk 0:00:06.3]} 45. Bxg6 {[%clk 0:00:28.6]} 45... Kxg6
{[%clk 0:00:07]} 46. Rxd5 {[%clk 0:00:29.3]} 46... Kf5 {[%clk 0:00:07.8]} 47.
Kg2 {[%clk 0:00:21.3]} 47... a4 {[%clk 0:00:06.8]} 48. Kf2 {[%clk 0:00:19.5]}
48... Rb8 {[%clk 0:00:07]} 49. Rd2 {[%clk 0:00:20.1]} 49... Kf4 {[%clk
0:00:07.5]} 50. Re2 {[%clk 0:00:19.7]} 50... Kf5 {[%clk 0:00:07.3]} 51. Kg3
{[%clk 0:00:18.1]} 51... Rg8+ {[%clk 0:00:06.5]} 52. Kh4 {[%clk 0:00:17.9]}
52... Rg1 {[%clk 0:00:05.8]} 53. Re4 {[%clk 0:00:14.3]} 53... Rf1 {[%clk
0:00:06]} 54. Rxa4 {[%clk 0:00:10.8]} 54... Rxf3 {[%clk 0:00:06.4]} 55. Ra8
{[%clk 0:00:10]} 55... Ke4 {[%clk 0:00:06.3]} 56. Re8 {[%clk 0:00:08.1]} 56...
Rf2 {[%clk 0:00:05.8]} 57. b4 {[%clk 0:00:08]} 57... Rc2 {[%clk 0:00:05]} 58. a4
{[%clk 0:00:07.9]} 58... Rxc3 {[%clk 0:00:05.3]} 59. a5 {[%clk 0:00:08.6]} 59...
Rc4 {[%clk 0:00:03.6]} 60. a6 {[%clk 0:00:08.6]} 60... Rxb4 {[%clk 0:00:03.7]}
61. a7 {[%clk 0:00:08.9]} 61... Kf5+ {[%clk 0:00:03.4]} 62. Kg3 {[%clk 0:00:08]}
62... h4+ {[%clk 0:00:03.8]} 63. Kg2 {[%clk 0:00:07.8]} 63... Rb2+ {[%clk
0:00:04.1]} 64. Kf1 {[%clk 0:00:08.5]} 64... Rb1+ {[%clk 0:00:04.6]} 65. Ke2
{[%clk 0:00:09.2]} 65... Rb2+ {[%clk 0:00:05.4]} 66. Kd1 {[%clk 0:00:09.9]}
66... Ra2 {[%clk 0:00:05.7]} 67. a8=Q {[%clk 0:00:10]} 67... Rxa8 {[%clk
0:00:06]} 68. Rxa8 {[%clk 0:00:10.9]} 1-0

[Event "Late-Titled-Tuesday-Blitz-May-14-2024"]
[Site "Chess.com"]
[Date "2024.05.14"]
[Round "8"]
[White "TheWiscoIndian"]
[Black "jeetjain"]
[Result "0-1"]
[WhiteElo "2249"]
[BlackElo "2584"]
[TimeControl "180+1"]
[EndTime "15:28:50 PDT"]
[Termination "jeetjain won by checkmate"]

1. Nf3 {[%clk 0:03:00.9]} 1... c5 {[%clk 0:02:52.4]} 2. g3 {[%clk 0:03:00.3]}
2... Nc6 {[%clk 0:02:48.7]} 3. Bg2 {[%clk 0:02:59.8]} 3... e5 {[%clk 0:02:49.1]}
4. d3 {[%clk 0:02:59.1]} 4... d6 {[%clk 0:02:49.8]} 5. O-O {[%clk 0:02:56.6]}
5... g6 {[%clk 0:02:50]} 6. c4 {[%clk 0:02:56.3]} 6... Bg7 {[%clk 0:02:50.4]} 7.
Nc3 {[%clk 0:02:53.3]} 7... Nge7 {[%clk 0:02:50.9]} 8. a3 {[%clk 0:02:50.3]}
8... a5 {[%clk 0:02:49.9]} 9. Ne1 {[%clk 0:02:43.2]} 9... O-O {[%clk 0:02:49.2]}
10. Nc2 {[%clk 0:02:40.5]} 10... f5 {[%clk 0:02:47.8]} 11. Ne3 {[%clk
0:02:40.7]} 11... g5 {[%clk 0:02:47]} 12. Ned5 {[%clk 0:02:35.5]} 12... f4
{[%clk 0:02:46.7]} 13. Bd2 {[%clk 0:02:28.1]} 13... h5 {[%clk 0:02:46.3]} 14.
Na4 {[%clk 0:02:21.3]} 14... Nxd5 {[%clk 0:02:44.4]} 15. Bxd5+ {[%clk
0:02:19.1]} 15... Kh8 {[%clk 0:02:44.7]} 16. Qb3 {[%clk 0:02:17.2]} 16... Nd4
{[%clk 0:02:40.6]} 17. Qd1 {[%clk 0:02:16.2]} 17... Bh3 {[%clk 0:02:38.5]} 18.
Re1 {[%clk 0:02:15.5]} 18... g4 {[%clk 0:02:36.3]} 19. Bc3 {[%clk 0:02:10.5]}
19... h4 {[%clk 0:02:32.9]} 20. Bxd4 {[%clk 0:02:03]} 20... cxd4 {[%clk
0:02:32.1]} 21. Bxb7 {[%clk 0:01:59.2]} 21... fxg3 {[%clk 0:02:30.4]} 22. fxg3
{[%clk 0:01:53.4]} 22... Qf6 {[%clk 0:02:26.1]} 23. Rf1 {[%clk 0:01:46]} 23...
Bxf1 {[%clk 0:02:25.5]} 24. Qxf1 {[%clk 0:01:45.3]} 24... Rab8 {[%clk
0:02:23.5]} 25. Qxf6 {[%clk 0:01:35.6]} 25... Rxf6 {[%clk 0:02:24.2]} 26. Bd5
{[%clk 0:01:35.5]} 26... Bh6 {[%clk 0:02:19.9]} 27. Rf1 {[%clk 0:01:28.5]} 27...
Rxf1+ {[%clk 0:02:17]} 28. Kxf1 {[%clk 0:01:29.4]} 28... Rf8+ {[%clk 0:02:16.3]}
29. Ke1 {[%clk 0:01:28.1]} 29... h3 {[%clk 0:02:13.6]} 30. b4 {[%clk 0:01:23.6]}
30... axb4 {[%clk 0:02:12.4]} 31. axb4 {[%clk 0:01:24.5]} 31... Be3 {[%clk
0:02:12.4]} 32. b5 {[%clk 0:01:24.3]} 32... Bg1 {[%clk 0:02:11.9]} 33. b6 {[%clk
0:01:20.4]} 33... Bxh2 {[%clk 0:02:12.1]} 34. b7 {[%clk 0:01:20.3]} 34... Bxg3+
{[%clk 0:02:12.3]} 35. Kd2 {[%clk 0:01:20.5]} 35... Bf2 {[%clk 0:02:05.8]} 36.
Nb6 {[%clk 0:01:20.1]} 36... g3 {[%clk 0:02:05.4]} 37. Nc8 {[%clk 0:01:20.3]}
37... g2 {[%clk 0:02:02.1]} 38. b8=Q {[%clk 0:01:14.8]} 38... g1=Q {[%clk
0:02:01.8]} 39. Qxd6 {[%clk 0:01:05.3]} 39... Qg5+ {[%clk 0:01:54.6]} 40. Kc2
{[%clk 0:01:01.5]} 40... Rxc8 {[%clk 0:01:54.4]} 41. Qd7 {[%clk 0:00:55]} 41...
Rf8 {[%clk 0:01:42.4]} 42. Qxh3+ {[%clk 0:00:54.6]} 42... Kg7 {[%clk 0:01:43]}
43. c5 {[%clk 0:00:51.3]} 43... Be3 {[%clk 0:01:28]} 44. Qd7+ {[%clk 0:00:51.1]}
44... Kh6 {[%clk 0:01:23.3]} 45. c6 {[%clk 0:00:44.5]} 45... Qd8 {[%clk
0:00:55.1]} 46. Qe6+ {[%clk 0:00:38.4]} 46... Rf6 {[%clk 0:00:53.7]} 47. Qh3+
{[%clk 0:00:37.8]} 47... Kg7 {[%clk 0:00:53.3]} 48. Be4 {[%clk 0:00:33.7]} 48...
Bh6 {[%clk 0:00:50.9]} 49. Qg4+ {[%clk 0:00:30.4]} 49... Kf8 {[%clk 0:00:49.5]}
50. Qh5 {[%clk 0:00:20.4]} 50... Qc7 {[%clk 0:00:48.4]} 51. Qg4 {[%clk
0:00:12.2]} 51... Rxc6+ {[%clk 0:00:47.9]} 52. Bxc6 {[%clk 0:00:11.5]} 52...
Qxc6+ {[%clk 0:00:48.8]} 53. Kb3 {[%clk 0:00:11.1]} 53... Qd5+ {[%clk
0:00:48.4]} 54. Ka3 {[%clk 0:00:09.7]} 54... Qd6+ {[%clk 0:00:48.4]} 55. Ka2
{[%clk 0:00:09.8]} 55... Ke7 {[%clk 0:00:48.5]} 56. Qh4+ {[%clk 0:00:09.1]}
56... Qf6 {[%clk 0:00:48.9]} 57. Qe4 {[%clk 0:00:09]} 57... Qe6+ {[%clk
0:00:49.2]} 58. Kb1 {[%clk 0:00:09.3]} 58... Bg7 {[%clk 0:00:46.9]} 59. Qh7
{[%clk 0:00:09.2]} 59... Qb6+ {[%clk 0:00:44.7]} 60. Kc2 {[%clk 0:00:08.9]}
60... Qf6 {[%clk 0:00:45.6]} 61. Qe4 {[%clk 0:00:08.3]} 61... Kf7 {[%clk
0:00:44]} 62. Qb7+ {[%clk 0:00:08.4]} 62... Qe7 {[%clk 0:00:43.9]} 63. Qd5+
{[%clk 0:00:08.4]} 63... Qe6 {[%clk 0:00:44.3]} 64. Qb7+ {[%clk 0:00:08.8]}
64... Kf6 {[%clk 0:00:44.6]} 65. Qf3+ {[%clk 0:00:09.5]} 65... Qf5 {[%clk
0:00:44.5]} 66. Qc6+ {[%clk 0:00:09.7]} 66... Qe6 {[%clk 0:00:44.5]} 67. Qf3+
{[%clk 0:00:10.3]} 67... Ke7 {[%clk 0:00:45.1]} 68. Qb7+ {[%clk 0:00:10.4]}
68... Qd7 {[%clk 0:00:45.5]} 69. Qb4+ {[%clk 0:00:09.7]} 69... Ke6 {[%clk
0:00:44.8]} 70. Qb6+ {[%clk 0:00:08.9]} 70... Qd6 {[%clk 0:00:44.5]} 71. Qa7
{[%clk 0:00:08]} 71... Bf6 {[%clk 0:00:43.5]} 72. Qh7 {[%clk 0:00:06.6]} 72...
Qc6+ {[%clk 0:00:39.9]} 73. Kd1 {[%clk 0:00:06.9]} 73... Qa4+ {[%clk 0:00:35.9]}
74. Ke1 {[%clk 0:00:05.4]} 74... Qa1+ {[%clk 0:00:35.5]} 75. Kf2 {[%clk
0:00:06]} 75... Qa6 {[%clk 0:00:31.1]} 76. Qg8+ {[%clk 0:00:06.4]} 76... Kd6
{[%clk 0:00:26.7]} 77. Qb8+ {[%clk 0:00:06.6]} 77... Kc5 {[%clk 0:00:26.5]} 78.
Qf8+ {[%clk 0:00:05.5]} 78... Qd6 {[%clk 0:00:26.5]} 79. Qc8+ {[%clk 0:00:04.9]}
79... Qc6 {[%clk 0:00:27]} 80. Qf8+ {[%clk 0:00:05.1]} 80... Kd5 {[%clk
0:00:25.2]} 81. Qg8+ {[%clk 0:00:03.7]} 81... Kd6 {[%clk 0:00:24.9]} 82. Qf8+
{[%clk 0:00:02.8]} 82... Ke6 {[%clk 0:00:25.3]} 83. Qg8+ {[%clk 0:00:02.6]}
83... Kd7 {[%clk 0:00:24.5]} 84. Qh7+ {[%clk 0:00:03.2]} 84... Be7 {[%clk
0:00:24.4]} 85. Qg8 {[%clk 0:00:03.9]} 85... Qf6+ {[%clk 0:00:24.2]} 86. Ke1
{[%clk 0:00:03.7]} 86... Qe6 {[%clk 0:00:25.1]} 87. Qg3 {[%clk 0:00:02.1]} 87...
Bb4+ {[%clk 0:00:25.3]} 88. Kd1 {[%clk 0:00:02.1]} 88... Qb3+ {[%clk 0:00:25.5]}
89. Kc1 {[%clk 0:00:01.9]} 89... Ba3+ {[%clk 0:00:25.4]} 90. Kd2 {[%clk
0:00:02]} 90... Qc3+ {[%clk 0:00:25.4]} 91. Kd1 {[%clk 0:00:02.1]} 91... Qc1#
{[%clk 0:00:26.3]} 0-1